bitfinex/quotes_SOLUSD_20240826
["timestamp","ask_amount","ask_price","bid_price","bid_amount"]
[1724657278500,6.22756211,159.41,159.38,3.58974461]
[1724657278731,1.56859672,159.4,159.38,3.58909212]
[1724657280919,1.56859672,159.4,159.36,3.58909212]
[1724657281110,1.56876503,159.39,159.37,3.58909212]
[1724657281315,1.56876503,159.39,159.36,3.58909212]
[1724657281516,1.56876503,159.39,159.37,3.58909212]
[1724657281824,1.56876503,159.39,159.36,3.58909212]
[1724657282017,1.56876503,159.39,159.34,3.58909212]
[1724657282200,1.56876503,159.39,159.35,3.58909212]
[1724657282400,1.56876503,159.39,159.32,12.1231]
[1724657282821,1.56876503,159.39,159.36,3.58962593]
[1724657283018,1.56876503,159.39,159.33,23.58962593]
[1724657283220,1.56876503,159.39,159.34,3.58962593]
[1724657283404,1.56876503,159.39,159.35,3.58962593]
[1724657283719,1.56876503,159.39,159.36,3.58962593]
[1724657284021,1.56876503,159.39,159.34,3.58962593]
[1724657284202,1.56876503,159.39,159.35,3.58962593]
[1724657284409,1.56876503,159.39,159.36,3.58962593]
[1724657284721,1.56876503,159.39,159.34,3.5894485]
[1724657284911,1.56876503,159.39,159.35,3.5894485]
[1724657285115,1.56876503,159.39,159.36,3.5894485]
[1724657285298,1.56876503,159.39,159.34,3.5894485]
[1724657285623,9.67778006,159.37,159.34,3.5894485]
[1724657285804,1.56916571,159.36,159.28,7.85233592]
[1724657286006,1.56928716,159.35,159.3,3.57832998]
[1724657286337,1.56928716,159.35,159.31,3.57860054]
[1724657286716,1.56928716,159.35,159.28,3.57860054]
[1724657287117,1.56928716,159.35,159.27,24.71738026]
[1724657287314,1.56928716,159.35,159.28,20.0]
[1724657287632,38.5584,159.38,159.29,9.67778006]
[1724657287633,1.56927061,159.36,159.29,9.67778006]
[1724657287837,1.56927061,159.36,159.3,20.0]
[1724657288829,1.56927061,159.36,159.31,3.57864981]
[1724657289028,32.2841,159.38,159.31,3.57864981]
[1724657290212,1.56915257,159.37,159.31,3.57864981]
[1724657290519,1.56915257,159.37,159.29,9.67778006]
[1724657290704,1.56915257,159.37,159.3,20.0]
[1724657302241,391.86915257,159.37,159.3,20.0]
[1724657305748,390.3,159.37,159.33,9.67778006]
[1724657305926,390.3,159.37,159.34,20.0]
[1724657306130,390.3,159.37,159.35,9.67778006]
[1724657306327,390.3,159.37,159.36,20.0]
[1724657306652,390.3,159.37,159.35,9.67778006]
[1724657307528,396.52756211,159.41,159.36,20.0]
[1724657307732,396.52756211,159.41,159.37,9.67778006]
[1724657311248,396.52756211,159.41,159.38,20.0]
[1724657315263,396.52756211,159.41,159.38,26.17651217]
[1724657317179,6.22756211,159.41,159.38,20.0]
[1724657317534,6.22756211,159.41,159.39,9.67778006]
[1724657317757,6.22756211,159.41,159.4,20.0]
[1724657320570,6.22756211,159.41,159.4,26.17543767]
[1724657321141,6.22756211,159.41,159.4,20.0]
[1724657321548,6.22756211,159.41,159.4,26.17529345]
[1724657323144,6.22756211,159.41,159.4,27.43107432]
[1724657323572,6.22756211,159.41,159.4,21.25578087]
[1724657323780,6.22756211,159.41,159.4,21.25578841]
[1724657330651,6.22756211,159.41,159.4,21.25575155]
[1724657334065,6.22756211,159.41,159.4,21.25574262]
[1724657334259,6.22756211,159.41,159.4,22.8254209]
[1724657337488,6.22756211,159.41,159.4,22.8254012]
[1724657338899,6.22756211,159.41,159.4,1.56966733]
[1724657340391,6.22756211,159.41,159.39,1.56966733]
[1724657340609,6.22756211,159.41,159.36,20.0]
[1724657340897,6.22756211,159.41,159.4,1.57000214]
[1724657341400,6.22756211,159.41,159.37,1.57000214]
[1724657341569,6.22756211,159.41,159.38,1.57000214]
[1724657341769,6.22756211,159.41,159.37,1.25600247]
[1724657341770,6.22756211,159.41,159.39,1.57000214]
[1724657342000,6.22756211,159.41,159.4,1.57000214]
[1724657343704,6.22756211,159.41,159.38,20.0]
[1724657343897,6.22756211,159.41,159.39,2.82565226]
[1724657344073,6.22756211,159.41,159.4,1.56980681]
[1724657345194,6.22756211,159.41,159.4,2.82565226]
[1724657345388,6.22756211,159.41,159.4,22.82565226]
[1724657345707,6.22756211,159.41,159.4,29.00122213]
[1724657346810,6.22756211,159.41,159.4,29.00051685]
[1724657348611,6.22756211,159.41,159.4,29.00041403]
[1724657348909,6.22756211,159.41,159.4,29.00041396]
[1724657350412,6.22756211,159.41,159.4,27.74467157]
[1724657350579,6.22756211,159.41,159.4,31.32082119]
[1724657350776,6.22756211,159.41,159.4,32.57656374]
[1724657353582,6.22756211,159.41,159.4,20.0]
[1724657353785,6.22756211,159.41,159.4,25.14582714]
[1724657354118,6.22756211,159.41,159.4,31.00688411]
[1724657354316,6.22756211,159.41,159.4,32.57656224]
[1724657356295,6.22756211,159.41,159.4,26.40156967]
[1724657356994,6.22756211,159.41,159.4,21.25580546]
[1724657357235,6.22756211,159.41,159.4,26.40192683]
[1724657360319,6.22756211,159.41,159.4,20.0]
[1724657360518,6.22756211,159.41,159.4,16.0795964]
[1724657360816,6.22756211,159.41,159.4,36.0795964]
[1724657362128,6.22756211,159.41,159.4,26.40181634]
[1724657362296,6.22756211,159.41,159.4,26.40172611]
[1724657363409,6.22756211,159.41,159.4,26.4016244]
[1724657363614,6.22756211,159.41,159.4,24.8318919]
[1724657363815,5.62401661,159.41,159.4,26.40156991]
[1724657364845,5.62401661,159.41,159.4,24.8318919]
[1724657365048,5.62401661,159.41,159.4,6.40159614]
[1724657365340,5.62401661,159.41,159.4,26.40159614]
[1724657367220,5.62401661,159.41,159.4,22.82543858]
[1724657367409,5.62401661,159.41,159.4,27.65736601]
[1724657368031,5.62401661,159.41,159.4,26.40161553]
[1724657368839,5.62401661,159.41,159.4,26.40161668]
[1724657370317,5.62401661,159.41,159.4,6.40161668]
[1724657370912,5.62401661,159.41,159.4,6.40198737]
[1724657374121,5.62401661,159.41,159.4,6.40180811]
[1724657375743,5.62401661,159.41,159.4,36.07958817]
[1724657377022,5.62401661,159.41,159.4,36.07968322]
[1724657377238,5.62401661,159.41,159.4,37.64949044]
[1724657377447,5.62401661,159.41,159.4,37.33578111]
[1724657377620,5.62401661,159.41,159.4,39.21955014]
[1724657377821,5.62401661,159.41,159.4,44.05189884]
[1724657378317,5.62401661,159.41,159.4,42.48209162]
[1724657379454,5.62401661,159.41,159.4,40.91228422]
[1724657379620,5.62401661,159.41,159.4,34.82409024]
[1724657380339,5.62401661,159.41,159.4,29.67778006]
[1724657380648,5.62401661,159.41,159.4,34.82409011]
[1724657383425,5.62401661,159.41,159.4,37.32952253]
[1724657383625,5.62401661,159.41,159.4,34.82409011]
[1724657383827,5.62401661,159.41,159.4,33.25428249]
[1724657384037,5.62401661,159.41,159.4,34.82408976]
[1724657384721,5.62401661,159.41,159.4,25.1463097]
[1724657386439,32.3337,159.46,159.4,23.57650227]
[1724657386630,1.56824909,159.45,159.41,5.14630948]
[1724657386948,7.99418357,159.45,159.42,5.14630948]
[1724657387147,7.99418357,159.45,159.43,5.14630948]
[1724657387331,7.99418357,159.45,159.44,1.56979688]
[1724657390964,7.99418357,159.45,159.39,20.0]
[1724657391249,7.99418357,159.45,159.4,5.14630041]
[1724657391550,7.99418357,159.45,159.41,25.14630041]
[1724657391767,7.99418357,159.45,159.42,5.14630041]
[1724657391926,7.99418357,159.45,159.43,5.14630041]
[1724657392132,7.99418357,159.45,159.44,1.56980463]
[1724657397055,7.99418357,159.45,159.44,1.56989538]
[1724657397553,398.29418357,159.45,159.4,20.0]
[1724657397742,398.29418357,159.45,159.44,1.56990234]
[1724657400753,398.29418357,159.45,159.37,20.0]
[1724657400948,398.29418357,159.45,159.38,5.14666493]
[1724657401153,398.29418357,159.45,159.39,25.14666493]
[1724657401348,398.29418357,159.45,159.4,5.14666493]
[1724657401661,398.29418357,159.45,159.41,5.14666493]
[1724657401859,398.29418357,159.45,159.42,5.14666493]
[1724657402152,398.29418357,159.45,159.43,1.56990242]
[1724657402354,398.29418357,159.45,159.44,1.56990242]
[1724657403257,398.29418357,159.45,159.41,3.57664526]
[1724657403433,396.72593448,159.45,159.42,5.14650339]
[1724657403637,396.72593448,159.45,159.43,5.14650478]
[1724657403943,396.72593448,159.45,159.44,1.56985915]
[1724657404662,396.72593448,159.45,159.44,5.14603469]
[1724657406450,12.69743448,159.45,159.44,1.56985915]
[1724657406645,46.32500674,159.45,159.44,1.56985915]
[1724657407160,40.05350674,159.45,159.44,1.56985915]
[1724657408867,40.05350674,159.45,159.44,1.5699751]
[1724657409166,40.05350674,159.45,159.38,20.0]
[1724657409374,40.05350674,159.45,159.44,1.5699751]
[1724657409569,40.05350674,159.45,159.44,3.13994214]
[1724657409776,40.05350674,159.45,159.44,1.56996704]
[1724657409981,43.33544647,159.45,159.41,3.57696118]
[1724657410280,7.99440674,159.45,159.42,1.57004385]
[1724657410559,7.99440674,159.45,159.43,5.14667885]
[1724657410764,6.42593448,159.45,159.44,1.57004385]
[1724657412866,7.99414392,159.45,159.44,1.57004385]
[1724657413444,7.99414392,159.45,159.39,20.0]
[1724657413644,7.99414392,159.45,159.4,5.14626693]
[1724657413842,7.99414392,159.45,159.41,5.14626693]
[1724657414065,7.99414392,159.45,159.42,5.14626693]
[1724657414270,7.99414392,159.45,159.43,5.14626693]
[1724657414470,7.99414392,159.45,159.44,1.56979581]
[1724657417970,6.42593448,159.45,159.44,1.56979581]
[1724657418268,7.99414547,159.45,159.44,5.14626693]
[1724657419159,6.42593448,159.45,159.44,5.14626693]
[1724657419475,7.99411684,159.45,159.44,5.14626693]
[1724657420383,6.42593448,159.45,159.44,1.56979581]
[1724657420681,7.99414391,159.45,159.44,5.14626693]
[1724657420857,6.42593448,159.45,159.44,5.14626693]
[1724657422363,7.99410393,159.45,159.44,5.14626693]
[1724657423268,6.42593448,159.45,159.44,5.14626693]
[1724657423460,6.42593448,159.45,159.39,20.0]
[1724657423665,7.99414702,159.45,159.4,11.32172103]
[1724657423864,7.99414702,159.45,159.41,11.32172103]
[1724657424052,7.99414702,159.45,159.42,31.32172103]
[1724657424371,7.99414702,159.45,159.43,5.14623918]
[1724657424574,7.99414702,159.45,159.43,8.72271203]
[1724657424878,7.99414702,159.45,159.44,5.14626123]
[1724657425063,6.42593448,159.45,159.44,5.14626123]
[1724657425372,7.99411575,159.45,159.44,5.14626123]
[1724657425778,14.26561575,159.45,159.44,1.56978838]
[1724657425962,17.54755548,159.45,159.44,1.56978838]
[1724657426161,17.54755548,159.45,159.34,30.8418]
[1724657426162,84.34861575,159.45,159.36,6.17661776]
[1724657426380,84.34861575,159.45,159.37,11.3241436]
[1724657426381,9.67778006,159.4,159.37,11.3241436]
[1724657426579,1.56882706,159.39,159.38,1.57013124]
[1724657427177,1.56882706,159.39,159.38,1.57049811]
[1724657428175,1.56882706,159.39,159.33,6.17800657]
[1724657428480,1.56882706,159.39,159.34,25.14884808]
[1724657428667,1.56882706,159.39,159.35,5.14884808]
[1724657428979,1.56882706,159.39,159.36,1.57048719]
[1724657429169,1.56882706,159.39,159.37,1.57048719]
[1724657429477,1.56882706,159.39,159.33,9.75697403]
[1724657429679,1.56882706,159.39,159.34,25.14884635]
[1724657429881,1.56882706,159.39,159.35,5.14884635]
[1724657430081,1.56882706,159.39,159.36,1.57048719]
[1724657430393,390.3,159.38,159.34,20.0]
[1724657430558,390.3,159.39,159.35,1.57048624]
[1724657430758,1.56883332,159.38,159.36,1.57048624]
[1724657430959,1.56883332,159.38,159.37,1.57048624]
[1724657431393,1.56883332,159.38,159.34,20.0]
[1724657431566,1.56883332,159.38,159.35,1.57047612]
[1724657431752,1.56883332,159.38,159.36,1.57047612]
[1724657431955,1.56883332,159.38,159.35,20.0]
[1724657432156,1.56883332,159.38,159.36,1.5704936]
[1724657432363,1.56883332,159.38,159.33,20.0]
[1724657432561,1.56883332,159.38,159.34,1.57049834]
[1724657432775,1.56883332,159.38,159.35,1.57049834]
[1724657432981,1.56883332,159.38,159.36,1.57049834]
[1724657433187,1.56883332,159.38,159.33,20.0]
[1724657433368,1.56883332,159.38,159.34,1.57049834]
[1724657433571,1.56883332,159.38,159.35,1.57049834]
[1724657433870,1.56883332,159.38,159.33,20.0]
[1724657434069,1.56883332,159.38,159.34,1.57050866]
[1724657434388,1.56883332,159.38,159.35,1.57050866]
[1724657434690,1.56883332,159.38,159.33,3.5784191]
[1724657434890,1.56883332,159.38,159.34,1.57050906]
[1724657435056,1.56883332,159.38,159.35,1.57050906]
[1724657435258,1.56883332,159.38,159.32,20.0]
[1724657435259,1.56883332,159.38,159.34,21.57050866]
[1724657435476,1.56883332,159.38,159.35,1.57050866]
[1724657435858,1.56883332,159.38,159.33,1.57050866]
[1724657436182,391.86883332,159.38,159.34,1.57050866]
[1724657436392,391.86883332,159.38,159.32,20.0]
[1724657436556,391.86883332,159.38,159.33,1.57050967]
[1724657436758,401.54661338,159.38,159.34,1.57050967]
[1724657436971,401.54661338,159.38,159.31,26.17871532]
[1724657437174,401.54661338,159.38,159.32,1.57050993]
[1724657437383,401.54661338,159.38,159.33,1.57050993]
[1724657437555,401.54661338,159.38,159.34,1.57050993]
[1724657437766,401.54661338,159.38,159.31,26.17871674]
[1724657438088,401.54661338,159.38,159.31,20.0]
[1724657438481,9.67778006,159.36,159.28,6.17885652]
[1724657438676,1.5694271,159.35,159.27,19.14275652]
[1724657438987,390.3,159.34,159.27,19.14275652]
[1724657439186,1.56942693,159.33,159.27,19.14275652]
[1724657439777,1.56942693,159.33,159.28,20.0]
[1724657440164,390.3,159.34,159.28,20.0]
[1724657440685,390.3,159.34,159.29,9.67778006]
[1724657440855,390.3,159.34,159.3,20.0]
[1724657441295,1.56922536,159.33,159.3,20.0]
[1724657441592,1.56922536,159.33,159.28,20.0]
[1724657442275,1.56931679,159.36,159.28,20.0]
[1724657442479,1.56931696,159.35,159.28,20.0]
[1724657443369,390.3,159.37,159.29,9.67778006]
[1724657443690,1.56906852,159.36,159.3,20.0]
[1724657444992,390.3,159.37,159.3,20.0]
[1724657444993,1.56908069,159.35,159.3,20.0]
[1724657445591,1.56921008,159.36,159.31,9.67778006]
[1724657445765,390.3,159.37,159.32,20.0]
[1724657446692,390.3,159.37,159.33,1.25508987]
[1724657447067,390.3,159.37,159.32,20.0]
[1724657447581,390.3,159.37,159.33,9.67778006]
[1724657447789,390.3,159.37,159.34,20.0]
[1724657447970,402.5909,159.42,159.35,9.67778006]
[1724657448173,1.56866723,159.41,159.36,20.0]
[1724657448897,1.56866723,159.41,159.32,29.67778006]
[1724657451093,390.3,159.4,159.32,29.67778006]
[1724657451389,1.5688246,159.39,159.32,29.67778006]
[1724657452280,1.5688246,159.39,159.32,20.0]
[1724657452467,9.67778006,159.38,159.3,9.67778006]
[1724657452679,1.56914441,159.37,159.3,9.67778006]
[1724657454184,1.56914441,159.37,159.31,20.0]
[1724657454566,1.56906715,159.39,159.32,9.67778006]
[1724657454782,1.56906715,159.39,159.33,20.0]
[1724657456886,391.86906715,159.39,159.33,20.0]
[1724657458201,391.86906715,159.39,159.32,9.67778006]
[1724657458375,391.86906715,159.39,159.33,20.0]
[1724657462471,390.3,159.39,159.33,20.0]
[1724657462676,390.3,159.39,159.34,1.25502427]
[1724657462879,390.3,159.41,159.33,20.0]
[1724657463075,1.56878165,159.4,159.33,20.0]
[1724657464402,1.56878152,159.39,159.33,20.0]
[1724657464811,1.56878152,159.39,159.32,9.67778006]
[1724657464968,1.56878152,159.39,159.33,20.0]
[1724657468799,390.3,159.38,159.33,20.0]
[1724657469101,1.56896933,159.37,159.33,20.0]
[1724657470005,1.56896933,159.37,159.33,26.17862075]
[1724657470798,390.3,159.38,159.33,26.17862075]
[1724657471317,390.3,159.38,159.34,6.17862075]
[1724657471606,390.3,159.38,159.35,20.0]
[1724657472184,390.3,159.38,159.33,26.17856504]
[1724657472383,390.3,159.38,159.34,6.17856504]
[1724657472677,390.3,159.38,159.35,20.0]
[1724657474382,390.3,159.38,159.35,20.0]
[1724657474699,390.3,159.41,159.34,26.17856504]
[1724657475001,1.5687798,159.4,159.34,20.0]
[1724657475198,1.5687798,159.4,159.33,26.17856363]
[1724657475404,1.56877972,159.39,159.34,6.17856363]
[1724657475575,1.56877972,159.39,159.35,20.0]
[1724657476179,1.56877972,159.39,159.33,26.17856443]
[1724657476392,11.24655978,159.39,159.34,6.17856443]
[1724657476711,41.45525978,159.39,159.35,20.0]
[1724657477385,41.45525978,159.39,159.3,26.17871316]
[1724657477592,41.45525978,159.39,159.31,6.17871316]
[1724657477899,41.45525978,159.39,159.29,9.67778006]
[1724657477900,41.45525978,159.39,159.32,26.17871316]
[1724657478201,41.45525978,159.39,159.33,6.17871316]
[1724657478389,41.45525978,159.39,159.34,26.17871316]
[1724657478593,41.45525978,159.39,159.32,20.0]
[1724657478795,41.45525978,159.39,159.33,6.17866828]
[1724657478997,41.45525978,159.39,159.34,26.17866828]
[1724657479198,41.45525978,159.39,159.35,20.0]
[1724657479389,31.77747972,159.39,159.33,6.17866377]
[1724657479594,31.77747972,159.39,159.34,26.17866377]
[1724657479795,31.77747972,159.39,159.35,20.0]
[1724657480119,31.77747972,159.39,159.33,6.17865736]
[1724657480408,31.77747972,159.39,159.34,20.0]
[1724657480786,390.3,159.38,159.34,26.17865736]
[1724657480985,1.5689902,159.37,159.34,20.0]
[1724657481180,1.5689902,159.37,159.32,26.17871634]
[1724657481400,1.5689902,159.37,159.33,6.17871634]
[1724657481576,1.5689902,159.37,159.28,9.67778006]
[1724657481781,11.24677026,159.37,159.29,6.17940563]
[1724657482009,11.24677026,159.37,159.3,6.17940563]
[1724657482200,11.24677026,159.37,159.31,6.17940563]
[1724657482506,11.24677026,159.37,159.32,6.17940563]
[1724657482716,11.24677026,159.37,159.28,9.67778006]
[1724657482717,11.24677026,159.37,159.29,6.17940563]
[1724657482878,11.24677026,159.37,159.3,6.17940563]
[1724657483074,11.24677026,159.37,159.31,26.17940563]
[1724657483279,11.24677026,159.37,159.32,6.17954553]
[1724657483475,11.24677026,159.37,159.33,20.0]
[1724657483678,1.5689902,159.37,159.33,20.0]
[1724657484119,1.5689902,159.37,159.29,26.17954269]
[1724657484315,1.5689902,159.37,159.3,6.17954269]
[1724657484611,1.5689902,159.37,159.31,26.17954269]
[1724657484910,1.5689902,159.37,159.32,6.17954269]
[1724657485079,1.5689902,159.37,159.33,20.0]
[1724657485905,1.5689902,159.37,159.29,26.17954243]
[1724657486109,1.5689902,159.37,159.3,6.17954243]
[1724657486400,1.5689902,159.37,159.31,26.17954243]
[1724657486611,1.5689902,159.37,159.32,6.17954243]
[1724657486612,390.3,159.36,159.32,6.17954243]
[1724657486804,1.56922259,159.35,159.33,20.0]
[1724657487683,1.56922259,159.35,159.29,26.17983449]
[1724657487989,1.56922259,159.35,159.3,6.17983449]
[1724657488179,1.56922259,159.35,159.31,26.17983449]
[1724657488381,1.56922259,159.35,159.32,6.17983449]
[1724657488580,1.56922259,159.35,159.33,20.0]
[1724657489088,390.3,159.36,159.33,20.0]
[1724657489297,390.3,159.36,159.29,26.17968845]
[1724657489499,1.56924454,159.35,159.3,6.17968845]
[1724657489695,1.56924454,159.35,159.31,26.17968845]
[1724657489915,1.56924454,159.35,159.32,6.17968845]
[1724657490209,1.56924454,159.35,159.33,20.0]
[1724657490791,390.3,159.36,159.3,26.17968987]
[1724657490987,1.56924113,159.35,159.31,6.17968987]
[1724657491210,1.56924113,159.35,159.32,26.17968987]
[1724657491391,1.56924113,159.35,159.33,6.17968987]
[1724657491591,390.3,159.36,159.32,20.0]
[1724657491828,390.3,159.36,159.29,20.0]
[1724657492119,1.56924057,159.35,159.3,6.17954526]
[1724657492323,1.56924057,159.35,159.31,26.17954526]
[1724657492490,1.56924057,159.35,159.32,6.17954526]
[1724657492694,49.44051357,159.39,159.33,20.0]
[1724657493205,49.44051357,159.39,159.29,20.0]
[1724657496010,7.84363694,159.38,159.29,20.0]
[1724657497211,11.12377045,159.38,159.29,20.0]
[1724657497617,9.55453351,159.38,159.29,20.0]
[1724657498021,9.55453351,159.38,159.3,1.57073812]
[1724657498220,1.5692351,159.37,159.31,2.82732811]
[1724657498523,390.3,159.36,159.34,9.67778006]
[1724657498728,390.3,159.36,159.35,22.82732811]
[1724657499523,390.3,159.36,159.35,20.0]
[1724657499724,390.3,159.36,159.35,22.82640498]
[1724657501608,390.3,159.36,159.35,67.82640498]
[1724657502316,390.3,159.36,159.35,22.82640498]
[1724657502507,390.3,159.36,159.35,20.0]
[1724657502715,390.3,159.36,159.35,22.82637222]
[1724657504003,390.3,159.36,159.35,2.82637222]
[1724657504517,390.3,159.41,159.35,2.82637222]
[1724657504844,1.56886201,159.4,159.36,2.82637222]
[1724657505009,1.56885373,159.39,159.37,1.57020679]
[1724657505207,1.56885373,159.39,159.38,1.57020679]
[1724657505834,1.56885373,159.39,159.32,20.0]
[1724657506030,1.56885373,159.39,159.33,2.82682486]
[1724657506243,1.56885373,159.39,159.34,1.2563666]
[1724657506430,1.56885373,159.39,159.35,1.2563666]
[1724657506729,1.56885373,159.39,159.36,1.2563666]
[1724657506931,1.56885373,159.39,159.32,20.0]
[1724657507233,1.56885373,159.39,159.33,1.2563542]
[1724657507533,1.56885373,159.39,159.34,1.2563542]
[1724657507725,1.56885373,159.39,159.35,1.2563542]
[1724657507911,1.56885373,159.39,159.36,1.2563542]
[1724657508232,1.56885803,159.4,159.34,20.0]
[1724657508433,1.56881455,159.39,159.35,1.25630243]
[1724657508637,1.56881455,159.39,159.36,1.25630243]
[1724657508832,1.56881455,159.39,159.34,20.0]
[1724657509131,1.56879344,159.4,159.34,20.0]
[1724657509644,390.3,159.41,159.34,20.0]
[1724657509816,1.56868821,159.4,159.34,20.0]
[1724657510011,7.4643939,159.4,159.34,20.0]
[1724657510327,1.5686931,159.39,159.34,20.0]
[1724657512835,5.89570569,159.4,159.34,20.0]
[1724657516856,5.89570569,159.4,159.35,9.67778006]
[1724657517143,5.89570569,159.4,159.36,21.25481599]
[1724657518214,5.89570569,159.4,159.36,20.0]
[1724657518418,5.89570569,159.4,159.37,9.67778006]
[1724657518727,5.89570569,159.4,159.38,20.0]
[1724657529732,5.89570569,159.4,159.33,30.4962]
[1724657529935,5.89570569,159.4,159.31,6.54791969]
[1724657529936,1.56863236,159.39,159.31,6.54791969]
[1724657530149,9.67778006,159.38,159.26,6.29771166]
[1724657530336,9.67778006,159.34,159.25,44.3459]
[1724657530655,1.5694015,159.33,159.25,44.3459]
[1724657531346,1.56939801,159.34,159.26,9.67778006]
[1724657531766,1.56939801,159.34,159.27,20.0]
[1724657532565,32.10490028,159.35,159.27,20.0]
[1724657533630,30.5356,159.35,159.28,9.67778006]
[1724657533933,30.5356,159.35,159.29,20.0]
[1724657536026,30.5356,159.35,159.3,54.67778006]
[1724657536230,30.5356,159.35,159.31,20.0]
[1724657537052,30.5356,159.35,159.3,20.0]
[1724657539152,1.56894744,159.37,159.3,20.0]
[1724657539330,390.3,159.38,159.3,20.0]
[1724657539530,390.3,159.38,159.31,9.67778006]
[1724657539861,390.3,159.38,159.32,20.0]
[1724657540362,1.56891912,159.37,159.32,20.0]
[1724657540937,390.3,159.38,159.32,20.0]
[1724657542138,390.3,159.38,159.33,9.67778006]
[1724657542461,5.89570569,159.4,159.34,20.0]
[1724657543548,1.56861023,159.39,159.34,20.0]
[1724657543735,5.89570569,159.4,159.34,20.0]
[1724657544042,7.46435677,159.4,159.34,20.0]
[1724657544471,7.46435677,159.4,159.35,9.67778006]
[1724657544472,5.89570569,159.4,159.35,9.67778006]
[1724657544833,5.89570569,159.4,159.36,20.0]
[1724657545356,7.46425852,159.4,159.36,20.0]
[1724657546500,5.89570569,159.4,159.36,20.0]
[1724657546846,1.56874916,159.39,159.36,20.0]
[1724657547043,1.56874916,159.39,159.34,20.0]
[1724657547341,5.89570569,159.4,159.34,20.0]
[1724657548651,5.89570569,159.4,159.34,21.25495568]
[1724657549242,5.89570569,159.4,159.34,21.25496819]
[1724657549992,5.89570569,159.4,159.34,20.0]
[1724657551967,5.89570569,159.4,159.35,9.67778006]
[1724657552183,5.89570569,159.4,159.36,20.0]
[1724657554965,5.89570569,159.4,159.37,9.67778006]
[1724657555147,5.89570569,159.4,159.38,20.0]
[1724657557073,1.56859233,159.39,159.32,6.17755722]
[1724657557250,1.56878874,159.39,159.33,3.57820863]
[1724657557454,7.46448541,159.4,159.34,3.57820863]
[1724657557664,7.46448541,159.4,159.32,15.85533728]
[1724657557665,1.56877954,159.39,159.32,15.85533728]
[1724657558151,396.19570569,159.4,159.32,15.85533728]
[1724657558352,397.764485,159.4,159.32,15.85533728]
[1724657559042,1.56877839,159.39,159.33,20.0]
[1724657559242,9.67778006,159.38,159.33,20.0]
[1724657559473,1.56904375,159.37,159.29,26.17926159]
[1724657560279,1.56904375,159.37,159.29,20.0]
[1724657560652,1.56904375,159.37,159.3,6.17937429]
[1724657560847,1.56904375,159.37,159.31,20.0]
[1724657561061,1.56904375,159.37,159.3,6.17937429]
[1724657561374,1.56904399,159.39,159.31,20.0]
[1724657561572,1.56904399,159.39,159.31,26.17937429]
[1724657563481,1.56904399,159.39,159.31,20.0]
[1724657563659,1.56904399,159.39,159.31,26.17919693]
[1724657566347,1.56904399,159.39,159.32,1.57061642]
[1724657566547,1.56904399,159.39,159.33,1.57061642]
[1724657566847,1.56904399,159.39,159.34,1.57061642]
[1724657567045,1.56904399,159.39,159.35,1.57061642]
[1724657567247,1.56904399,159.39,159.31,26.17919693]
[1724657567443,1.56904399,159.39,159.32,1.57061648]
[1724657567676,1.56904399,159.39,159.33,1.57061648]
[1724657567862,1.56904399,159.39,159.34,1.57061648]
[1724657568065,1.56904399,159.39,159.35,1.57061648]
[1724657568268,1.56904399,159.39,159.31,26.17919693]
[1724657568575,1.56904399,159.39,159.32,1.57061648]
[1724657568774,1.56904399,159.39,159.33,1.57061648]
[1724657568971,1.56904399,159.39,159.34,1.57061648]
[1724657569149,1.56904399,159.39,159.35,1.57061648]
[1724657569352,1.56904399,159.39,159.33,20.0]
[1724657569579,396.19570569,159.4,159.34,1.57060424]
[1724657569883,396.19570569,159.4,159.35,1.57060424]
[1724657570183,396.19570569,159.4,159.33,20.0]
[1724657570680,1.56885924,159.39,159.33,20.0]
[1724657570855,1.56885924,159.39,159.34,1.57060404]
[1724657571058,1.56885924,159.39,159.35,1.57060404]
[1724657571359,1.56885924,159.39,159.33,20.0]
[1724657571670,1.56885924,159.39,159.34,1.57060493]
[1724657571885,1.56885924,159.39,159.35,1.57060493]
[1724657572074,1.56885924,159.39,159.33,20.0]
[1724657572375,1.56885924,159.39,159.34,1.57059685]
[1724657572560,1.56885924,159.39,159.35,1.57059685]
[1724657572879,396.19570569,159.4,159.33,20.0]
[1724657573081,1.56885222,159.39,159.34,1.57060461]
[1724657573283,1.56885222,159.39,159.33,20.0]
[1724657575283,1.56885222,159.39,159.34,1.25647748]
[1724657575482,1.56885312,159.39,159.33,20.0]
[1724657575655,1.56885312,159.39,159.31,26.1791457]
[1724657575862,390.3,159.38,159.32,1.25648454]
[1724657576064,390.3,159.38,159.33,1.25648454]